[Event "Late-Titled-Tuesday-Blitz-September-05-2023"]
[Site "Chess.com"]
[Date "2023.09.05"]
[Round "10"]
[White "ameetghasi100"]
[Black "mishanick"]
[Result "0-1"]
[WhiteElo "2687"]
[BlackElo "3054"]
[TimeControl "180+1"]
[EndTime "15:53:51 PDT"]
[Termination "mishanick won on time"]

1. Nf3 {[%clk 0:03:00.9]} 1... d5 {[%clk 0:03:00]} 2. g3 {[%clk 0:03:01.8]} 2...
g6 {[%clk 0:03:00]} 3. Bg2 {[%clk 0:03:02]} 3... Bg7 {[%clk 0:03:00.9]} 4. O-O
{[%clk 0:03:02.6]} 4... e5 {[%clk 0:02:59.7]} 5. d3 {[%clk 0:03:03.3]} 5... Ne7
{[%clk 0:02:59.2]} 6. Nbd2 {[%clk 0:03:03.8]} 6... O-O {[%clk 0:02:59.5]} 7. e4
{[%clk 0:03:04.7]} 7... Nbc6 {[%clk 0:03:00]} 8. c3 {[%clk 0:03:04.8]} 8... h6
{[%clk 0:02:58.8]} 9. Re1 {[%clk 0:03:04.7]} 9... Re8 {[%clk 0:02:58.4]} 10. b4
{[%clk 0:03:00.9]} 10... d4 {[%clk 0:02:56]} 11. Bb2 {[%clk 0:02:59]} 11... dxc3
{[%clk 0:02:55.2]} 12. Bxc3 {[%clk 0:02:59.9]} 12... a6 {[%clk 0:02:55.8]} 13.
Qc2 {[%clk 0:02:54.5]} 13... Kh7 {[%clk 0:02:53.5]} 14. Nc4 {[%clk 0:02:45.1]}
14... f6 {[%clk 0:02:49.1]} 15. a4 {[%clk 0:02:07.3]} 15... Be6 {[%clk 0:02:45]}
16. b5 {[%clk 0:02:03.6]} 16... Nd4 {[%clk 0:02:45.6]} 17. Nxd4 {[%clk
0:02:02.3]} 17... exd4 {[%clk 0:02:46.5]} 18. Bd2 {[%clk 0:02:02.7]} 18... Qd7
{[%clk 0:02:44.5]} 19. Rab1 {[%clk 0:01:41.3]} 19... axb5 {[%clk 0:02:44.2]} 20.
axb5 {[%clk 0:01:42.2]} 20... Bh3 {[%clk 0:02:36.6]} 21. Bh1 {[%clk 0:01:42.1]}
21... Be6 {[%clk 0:02:32.1]} 22. Rec1 {[%clk 0:01:28.7]} 22... Rec8 {[%clk
0:02:22.5]} 23. h4 {[%clk 0:01:18.8]} 23... Rab8 {[%clk 0:02:20.8]} 24. Na5
{[%clk 0:01:13]} 24... g5 {[%clk 0:02:14.1]} 25. hxg5 {[%clk 0:01:09.4]} 25...
fxg5 {[%clk 0:02:15]} 26. f4 {[%clk 0:00:32.4]} 26... gxf4 {[%clk 0:02:15.2]}
27. gxf4 {[%clk 0:00:33.3]} 27... Rg8 {[%clk 0:02:03.6]} 28. Kh2 {[%clk
0:00:33.3]} 28... Bf6 {[%clk 0:01:27.4]} 29. Rg1 {[%clk 0:00:32.8]} 29... Bg4
{[%clk 0:01:25.8]} 30. Qc4 {[%clk 0:00:25.5]} 30... Qe8 {[%clk 0:01:25.4]} 31.
Rg2 {[%clk 0:00:09.9]} 31... Qh5+ {[%clk 0:01:21.6]} 32. Kg1 {[%clk 0:00:10]}
32... Bf3 {[%clk 0:01:22.1]} 33. Qe6 {[%clk 0:00:07.4]} 33... Rxg2+ {[%clk
0:01:17.6]} 34. Bxg2 {[%clk 0:00:07.3]} 34... Rg8 {[%clk 0:01:18.3]} 35. Qxg8+
{[%clk 0:00:04.3]} 35... Kxg8 {[%clk 0:01:19.2]} 0-1

[Event "Late-Titled-Tuesday-Blitz-September-05-2023"]
[Site "Chess.com"]
[Date "2023.09.05"]
[Round "10"]
[White "Jospem"]
[Black "Aygehovit1992"]
[Result "1-0"]
[WhiteElo "3031"]
[BlackElo "2725"]
[TimeControl "180+1"]
[EndTime "15:53:57 PDT"]
[Termination "Jospem won by resignation"]

1. a3 {[%clk 0:03:00.9]} 1... e5 {[%clk 0:02:58.8]} 2. h3 {[%clk 0:02:59]} 2...
d5 {[%clk 0:02:58.2]} 3. b3 {[%clk 0:02:59.9]} 3... f5 {[%clk 0:02:57.4]} 4. e4
{[%clk 0:03:00.5]} 4... dxe4 {[%clk 0:02:54.4]} 5. d3 {[%clk 0:03:01.3]} 5...
Nf6 {[%clk 0:02:51.2]} 6. Nc3 {[%clk 0:03:01.1]} 6... Bc5 {[%clk 0:02:42.2]} 7.
Qd2 {[%clk 0:02:43.1]} 7... exd3 {[%clk 0:02:31.6]} 8. Bxd3 {[%clk 0:02:44]}
8... e4 {[%clk 0:02:32.1]} 9. Bb5+ {[%clk 0:02:43.4]} 9... c6 {[%clk 0:02:31.6]}
10. Qxd8+ {[%clk 0:02:43.9]} 10... Kxd8 {[%clk 0:02:32.2]} 11. Bc4 {[%clk
0:02:43.7]} 11... b5 {[%clk 0:02:22.1]} 12. Bf1 {[%clk 0:02:39.5]} 12... Be6
{[%clk 0:02:08.1]} 13. Bf4 {[%clk 0:02:39.2]} 13... Nbd7 {[%clk 0:02:07.4]} 14.
Nge2 {[%clk 0:02:39.5]} 14... h6 {[%clk 0:02:03.8]} 15. h4 {[%clk 0:02:39.5]}
15... a5 {[%clk 0:01:52.1]} 16. f3 {[%clk 0:02:38.7]} 16... e3 {[%clk
0:01:46.5]} 17. Bh2 {[%clk 0:02:26.8]} 17... Re8 {[%clk 0:01:46.2]} 18. a4
{[%clk 0:02:26.2]} 18... b4 {[%clk 0:01:38.9]} 19. Na2 {[%clk 0:02:26.9]} 19...
g5 {[%clk 0:01:28.8]} 20. hxg5 {[%clk 0:02:27.8]} 20... hxg5 {[%clk 0:01:29.5]}
21. Nac1 {[%clk 0:02:28.6]} 21... f4 {[%clk 0:01:28.2]} 22. g3 {[%clk
0:02:29.2]} 22... Ne5 {[%clk 0:01:11.6]} 23. Bg2 {[%clk 0:02:28.8]} 23... g4
{[%clk 0:01:02.5]} 24. O-O {[%clk 0:02:22.9]} 24... gxf3 {[%clk 0:00:58.5]} 25.
Bxf3 {[%clk 0:02:21.7]} 25... Bh3 {[%clk 0:00:57.8]} 26. gxf4 {[%clk 0:02:19.9]}
26... Rg8+ {[%clk 0:00:51.4]} 27. Bg3 {[%clk 0:02:20.5]} 27... Nxf3+ {[%clk
0:00:36.6]} 28. Rxf3 {[%clk 0:02:21.4]} 28... Bg4 {[%clk 0:00:32.9]} 29. Kg2
{[%clk 0:02:22]} 29... Bxf3+ {[%clk 0:00:23.3]} 30. Kxf3 {[%clk 0:02:22.9]}
30... Kc7 {[%clk 0:00:21.3]} 31. Nd3 {[%clk 0:02:23.6]} 31... Bb6 {[%clk
0:00:21.9]} 32. f5+ {[%clk 0:02:23.8]} 32... Kb7 {[%clk 0:00:22.5]} 33. Nef4
{[%clk 0:02:21.8]} 33... Nd5 {[%clk 0:00:17.6]} 34. Ne6 {[%clk 0:02:19.2]} 34...
Rae8 {[%clk 0:00:10.7]} 35. Rh1 {[%clk 0:02:19.1]} 35... Re7 {[%clk 0:00:09.8]}
36. Ne5 {[%clk 0:02:12.7]} 36... e2 {[%clk 0:00:08.9]} 37. Nc4 {[%clk
0:02:07.3]} 37... Nc3 {[%clk 0:00:07.9]} 38. Be1 {[%clk 0:02:04.2]} 38... Rd7
{[%clk 0:00:04]} 39. Bxc3 {[%clk 0:02:03.6]} 39... bxc3 {[%clk 0:00:03.9]} 40.
Kxe2 {[%clk 0:02:03.8]} 40... Rg2+ {[%clk 0:00:04]} 41. Kf3 {[%clk 0:02:04.4]}
41... Rxc2 {[%clk 0:00:04.7]} 42. Kg3 {[%clk 0:01:55.8]} 42... Re2 {[%clk
0:00:04.1]} 43. Nf4 {[%clk 0:01:49.6]} 43... Re4 {[%clk 0:00:03.6]} 44. Kf3
{[%clk 0:01:49]} 44... Red4 {[%clk 0:00:04.1]} 45. Rc1 {[%clk 0:01:47.4]} 45...
Rf7 {[%clk 0:00:03.9]} 46. Ne3 {[%clk 0:01:41.1]} 46... Bc7 {[%clk 0:00:03.4]}
47. Ne6 {[%clk 0:01:40.1]} 47... Rd3 {[%clk 0:00:03]} 48. Nc5+ {[%clk
0:01:40.6]} 48... Kb6 {[%clk 0:00:02.9]} 49. Nxd3 {[%clk 0:01:41.5]} 1-0

[Event "Late-Titled-Tuesday-Blitz-September-05-2023"]
[Site "Chess.com"]
[Date "2023.09.05"]
[Round "10"]
[White "cassoulet"]
[Black "SCIM"]
[Result "1-0"]
[WhiteElo "2751"]
[BlackElo "2593"]
[TimeControl "180+1"]
[EndTime "15:53:57 PDT"]
[Termination "cassoulet won by resignation"]

1. e4 {[%clk 0:01:48.9]} 1... c5 {[%clk 0:02:58.4]} 2. Nf3 {[%clk 0:01:48.6]}
2... e6 {[%clk 0:02:58.7]} 3. d4 {[%clk 0:01:48.7]} 3... cxd4 {[%clk 0:02:59.6]}
4. Nxd4 {[%clk 0:01:49.1]} 4... a6 {[%clk 0:02:59.6]} 5. Nc3 {[%clk 0:01:49.7]}
5... Nc6 {[%clk 0:02:58.1]} 6. Be3 {[%clk 0:01:49.1]} 6... Qc7 {[%clk
0:02:57.3]} 7. Bd3 {[%clk 0:01:49.6]} 7... Nf6 {[%clk 0:02:56.1]} 8. O-O {[%clk
0:01:49.9]} 8... b5 {[%clk 0:02:53.4]} 9. Nxc6 {[%clk 0:01:49.2]} 9... dxc6
{[%clk 0:02:48.6]} 10. f4 {[%clk 0:01:47.8]} 10... Bb7 {[%clk 0:02:42.9]} 11.
Qf3 {[%clk 0:01:45.9]} 11... Be7 {[%clk 0:02:36.9]} 12. e5 {[%clk 0:01:45.9]}
12... c5 {[%clk 0:02:30.1]} 13. Qg3 {[%clk 0:01:45.7]} 13... Nd5 {[%clk
0:02:26.6]} 14. Nxd5 {[%clk 0:01:43.7]} 14... Bxd5 {[%clk 0:02:25.5]} 15. f5
{[%clk 0:01:44.2]} 15... O-O-O {[%clk 0:02:20.5]} 16. fxe6 {[%clk 0:01:41.9]}
16... Bxe6 {[%clk 0:02:15.2]} 17. a4 {[%clk 0:01:41.6]} 17... c4 {[%clk
0:01:49]} 18. Bf5 {[%clk 0:01:41.3]} 18... Bc5 {[%clk 0:01:26.4]} 19. axb5
{[%clk 0:01:37]} 19... axb5 {[%clk 0:01:22.1]} 20. Ra8+ {[%clk 0:01:33.5]} 20...
Kb7 {[%clk 0:01:21.1]} 21. Be4+ {[%clk 0:01:30]} 21... Kb6 {[%clk 0:01:18.8]}
22. Ra3 {[%clk 0:01:16.9]} 22... Bc8 {[%clk 0:00:55.7]} 23. b4 {[%clk
0:01:05.6]} 23... cxb3 {[%clk 0:00:53]} 24. Rxb3 {[%clk 0:01:05.5]} 24... Bxe3+
{[%clk 0:00:51.5]} 25. Qxe3+ {[%clk 0:01:05.4]} 25... Qc5 {[%clk 0:00:51]} 26.
Rxb5+ {[%clk 0:00:41.4]} 26... Kxb5 {[%clk 0:00:40.2]} 27. c4+ {[%clk
0:00:36.8]} 27... Kb4 {[%clk 0:00:24.4]} 28. Rb1+ {[%clk 0:00:36.1]} 1-0

[Event "Late-Titled-Tuesday-Blitz-September-05-2023"]
[Site "Chess.com"]
[Date "2023.09.05"]
[Round "10"]
[White "pouya21"]
[Black "AndreiITrifan"]
[Result "1-0"]
[WhiteElo "2808"]
[BlackElo "2639"]
[TimeControl "180+1"]
[EndTime "15:54:05 PDT"]
[Termination "pouya21 won on time"]

1. e4 {[%clk 0:03:00.9]} 1... e5 {[%clk 0:02:59.6]} 2. Nf3 {[%clk 0:03:01.2]}
2... Nc6 {[%clk 0:02:59.3]} 3. Bb5 {[%clk 0:03:01.7]} 3... a6 {[%clk 0:02:59.1]}
4. Bxc6 {[%clk 0:03:02.1]} 4... dxc6 {[%clk 0:02:59.2]} 5. O-O {[%clk 0:03:03]}
5... Bg4 {[%clk 0:02:55.8]} 6. h3 {[%clk 0:03:02.9]} 6... h5 {[%clk 0:02:55.7]}
7. d3 {[%clk 0:03:03.2]} 7... Qf6 {[%clk 0:02:55.4]} 8. Be3 {[%clk 0:03:03.3]}
8... Bxf3 {[%clk 0:02:52.8]} 9. Qxf3 {[%clk 0:03:04.2]} 9... Qxf3 {[%clk
0:02:52.4]} 10. gxf3 {[%clk 0:03:05.1]} 10... Bd6 {[%clk 0:02:50]} 11. Nd2
{[%clk 0:03:05.3]} 11... Ne7 {[%clk 0:02:48.2]} 12. Rfb1 {[%clk 0:03:05.9]}
12... a5 {[%clk 0:02:40.4]} 13. a4 {[%clk 0:03:04.3]} 13... Ng6 {[%clk
0:02:39.1]} 14. Kf1 {[%clk 0:03:04.6]} 14... f6 {[%clk 0:02:34.2]} 15. Nc4
{[%clk 0:03:04.5]} 15... Ke7 {[%clk 0:02:20.1]} 16. c3 {[%clk 0:03:01.2]} 16...
Rhb8 {[%clk 0:02:14.6]} 17. Ke2 {[%clk 0:02:57.8]} 17... Kf7 {[%clk 0:02:14.5]}
18. b4 {[%clk 0:02:45.8]} 18... axb4 {[%clk 0:02:03.8]} 19. cxb4 {[%clk
0:02:46.7]} 19... Bf8 {[%clk 0:01:56.9]} 20. b5 {[%clk 0:02:45.1]} 20... cxb5
{[%clk 0:01:55.1]} 21. axb5 {[%clk 0:02:41.6]} 21... Ne7 {[%clk 0:01:54.4]} 22.
f4 {[%clk 0:02:39.9]} 22... Ke6 {[%clk 0:01:42.9]} 23. f5+ {[%clk 0:02:37.4]}
23... Kf7 {[%clk 0:01:35.1]} 24. f4 {[%clk 0:02:37.7]} 24... g6 {[%clk
0:01:33.5]} 25. fxe5 {[%clk 0:02:25.4]} 25... gxf5 {[%clk 0:01:33.5]} 26. exf6
{[%clk 0:02:24.1]} 26... Kxf6 {[%clk 0:01:33]} 27. Bf4 {[%clk 0:01:57.7]} 27...
fxe4 {[%clk 0:01:10.3]} 28. dxe4 {[%clk 0:01:56.7]} 28... Rc8 {[%clk 0:01:00]}
29. Rxa8 {[%clk 0:01:53.3]} 29... Rxa8 {[%clk 0:01:00.9]} 30. Bxc7 {[%clk
0:01:53.5]} 30... Ra2+ {[%clk 0:00:59.7]} 31. Kd3 {[%clk 0:01:52.7]} 31... Ng6
{[%clk 0:00:53.4]} 32. Rf1+ {[%clk 0:01:49.6]} 32... Ke6 {[%clk 0:00:49.6]} 33.
b6 {[%clk 0:01:45]} 33... Bg7 {[%clk 0:00:40.9]} 34. Rf5 {[%clk 0:01:38.7]}
34... h4 {[%clk 0:00:35]} 35. Rg5 {[%clk 0:01:32.9]} 35... Kf6 {[%clk
0:00:08.5]} 36. Bd8+ {[%clk 0:01:29.9]} 36... Kf7 {[%clk 0:00:08.4]} 37. Nd6+
{[%clk 0:01:29.4]} 37... Kf8 {[%clk 0:00:04.7]} 38. Rxg6 {[%clk 0:01:28.5]}
38... Ra3+ {[%clk 0:00:05.3]} 39. Kc4 {[%clk 0:01:27.9]} 39... Rxh3 {[%clk
0:00:06.2]} 40. Nxb7 {[%clk 0:01:25.8]} 40... Rc3+ {[%clk 0:00:04.5]} 41. Kd5
{[%clk 0:01:26]} 41... h3 {[%clk 0:00:05.4]} 42. Bc7 {[%clk 0:01:23.1]} 42...
Rd3+ {[%clk 0:00:01.7]} 43. Kc6 {[%clk 0:01:23.2]} 1-0

[Event "Late-Titled-Tuesday-Blitz-September-05-2023"]
[Site "Chess.com"]
[Date "2023.09.05"]
[Round "10"]
[White "Tomytoteph"]
[Black "Doudou2015"]
[Result "1-0"]
[WhiteElo "2568"]
[BlackElo "2207"]
[TimeControl "180+1"]
[EndTime "15:54:05 PDT"]
[Termination "Tomytoteph won by resignation"]

1. e4 {[%clk 0:02:57.1]} 1... c5 {[%clk 0:02:59.6]} 2. Nf3 {[%clk 0:02:56.3]}
2... Nc6 {[%clk 0:02:59.4]} 3. Bb5 {[%clk 0:02:55.9]} 3... e5 {[%clk 0:02:57.1]}
4. O-O {[%clk 0:02:55.7]} 4... Qc7 {[%clk 0:02:54.7]} 5. Nc3 {[%clk 0:02:55]}
5... Nf6 {[%clk 0:02:50.8]} 6. Nd5 {[%clk 0:02:54.8]} 6... Nxd5 {[%clk
0:02:48.7]} 7. exd5 {[%clk 0:02:55.7]} 7... Nd4 {[%clk 0:02:49.1]} 8. Nxd4
{[%clk 0:02:54.9]} 8... cxd4 {[%clk 0:02:49.4]} 9. c3 {[%clk 0:02:54.5]} 9...
Bc5 {[%clk 0:02:45.7]} 10. Re1 {[%clk 0:02:53.8]} 10... O-O {[%clk 0:02:45]} 11.
c4 {[%clk 0:02:52.2]} 11... a6 {[%clk 0:02:33.1]} 12. Ba4 {[%clk 0:02:52]} 12...
b5 {[%clk 0:02:22.8]} 13. cxb5 {[%clk 0:02:50.3]} 13... axb5 {[%clk 0:02:23.7]}
14. Bxb5 {[%clk 0:02:49.9]} 14... Qb6 {[%clk 0:02:21]} 15. Bd3 {[%clk
0:02:45.9]} 15... d6 {[%clk 0:02:18]} 16. a3 {[%clk 0:02:42.3]} 16... f5 {[%clk
0:02:14.3]} 17. Bc4 {[%clk 0:02:34.5]} 17... d3 {[%clk 0:02:09.3]} 18. Rf1
{[%clk 0:02:13.5]} 18... Bd4 {[%clk 0:02:01.6]} 19. Bxd3 {[%clk 0:02:12]} 19...
e4 {[%clk 0:01:57.7]} 20. Bc4 {[%clk 0:02:09.4]} 20... Ba6 {[%clk 0:01:58]} 21.
d3 {[%clk 0:01:58.1]} 21... Bxc4 {[%clk 0:01:47]} 22. dxc4 {[%clk 0:01:57.6]}
22... Rfc8 {[%clk 0:01:40.3]} 23. Qe2 {[%clk 0:01:56.3]} 23... Qb3 {[%clk
0:01:33.7]} 24. Bf4 {[%clk 0:01:51.2]} 24... Rxc4 {[%clk 0:01:18.2]} 25. Bxd6
{[%clk 0:01:47.7]} 25... Rc2 {[%clk 0:01:18.4]} 26. Qh5 {[%clk 0:01:46.6]} 26...
g6 {[%clk 0:01:16.3]} 27. Qh4 {[%clk 0:01:44.5]} 27... Re8 {[%clk 0:00:58]} 28.
Rad1 {[%clk 0:01:37.2]} 28... Bxb2 {[%clk 0:00:45.9]} 29. Bb4 {[%clk 0:01:31.4]}
29... Bc3 {[%clk 0:00:37.8]} 30. d6 {[%clk 0:01:25.7]} 30... Bxb4 {[%clk
0:00:30.6]} 31. d7 {[%clk 0:01:20.6]} 31... Rf8 {[%clk 0:00:25.2]} 32. axb4
{[%clk 0:01:18.5]} 32... e3 {[%clk 0:00:15.4]} 33. d8=Q {[%clk 0:01:13.2]} 33...
exf2+ {[%clk 0:00:15.6]} 34. Kh1 {[%clk 0:01:12.5]} 34... Rxd8 {[%clk
0:00:14.5]} 35. Qxd8+ {[%clk 0:01:11]} 35... Kg7 {[%clk 0:00:13.9]} 36. Rd7+
{[%clk 0:01:11.4]} 1-0

[Event "Late-Titled-Tuesday-Blitz-September-05-2023"]
[Site "Chess.com"]
[Date "2023.09.05"]
[Round "10"]
[White "Leo_C"]
[Black "Marcin"]
[Result "1-0"]
[WhiteElo "2649"]
[BlackElo "2483"]
[TimeControl "180+1"]
[EndTime "15:54:08 PDT"]
[Termination "Leo_C won on time"]

1. d4 {[%clk 0:03:00.9]} 1... Nf6 {[%clk 0:02:58.9]} 2. Bf4 {[%clk 0:02:58.6]}
2... d5 {[%clk 0:02:50]} 3. e3 {[%clk 0:02:56.3]} 3... c5 {[%clk 0:02:49.8]} 4.
Nf3 {[%clk 0:02:55.7]} 4... Nc6 {[%clk 0:02:48.1]} 5. Nbd2 {[%clk 0:02:55.6]}
5... e6 {[%clk 0:02:38.9]} 6. c3 {[%clk 0:02:54.7]} 6... cxd4 {[%clk 0:02:38.6]}
7. exd4 {[%clk 0:02:54.6]} 7... Nh5 {[%clk 0:02:30.8]} 8. Bg5 {[%clk 0:02:54.3]}
8... f6 {[%clk 0:02:26.5]} 9. Be3 {[%clk 0:02:53.4]} 9... Bd6 {[%clk 0:02:23.1]}
10. Bd3 {[%clk 0:02:50]} 10... Nf4 {[%clk 0:02:14.5]} 11. Bxf4 {[%clk
0:02:49.8]} 11... Bxf4 {[%clk 0:02:13.7]} 12. O-O {[%clk 0:02:49.9]} 12... O-O
{[%clk 0:02:07.5]} 13. Re1 {[%clk 0:02:47.3]} 13... Qc7 {[%clk 0:01:36.9]} 14.
g3 {[%clk 0:02:45.7]} 14... Bd6 {[%clk 0:01:36.1]} 15. c4 {[%clk 0:02:29.9]}
15... Bd7 {[%clk 0:01:22]} 16. Rc1 {[%clk 0:02:27]} 16... Rae8 {[%clk
0:01:06.9]} 17. a3 {[%clk 0:02:16.4]} 17... Kh8 {[%clk 0:00:54.6]} 18. Qc2
{[%clk 0:02:15.6]} 18... Ne7 {[%clk 0:00:37.2]} 19. c5 {[%clk 0:02:08.1]} 19...
Rc8 {[%clk 0:00:27.1]} 20. cxd6 {[%clk 0:02:03.1]} 20... Qxd6 {[%clk 0:00:27.1]}
21. Qb3 {[%clk 0:02:03]} 21... b6 {[%clk 0:00:18.6]} 22. Bb5 {[%clk 0:02:01.2]}
22... Bxb5 {[%clk 0:00:11.6]} 23. Qxb5 {[%clk 0:02:02.1]} 23... Ng6 {[%clk
0:00:08.5]} 24. Nf1 {[%clk 0:01:51.7]} 24... e5 {[%clk 0:00:08.3]} 25. Rxc8
{[%clk 0:01:46.9]} 25... Rxc8 {[%clk 0:00:07.5]} 26. dxe5 {[%clk 0:01:47.4]}
26... fxe5 {[%clk 0:00:07.4]} 27. Ne3 {[%clk 0:01:47.9]} 27... e4 {[%clk
0:00:05.1]} 28. Nd4 {[%clk 0:01:44.8]} 28... Rd8 {[%clk 0:00:03.1]} 29. Rc1
{[%clk 0:01:43.1]} 29... Ne5 {[%clk 0:00:01.6]} 30. Ndf5 {[%clk 0:01:34.5]}
30... Qf6 {[%clk 0:00:01]} 31. Rd1 {[%clk 0:01:15.4]} 31... Nf3+ {[%clk
0:00:01.9]} 32. Kg2 {[%clk 0:01:14.9]} 32... g6 {[%clk 0:00:02.5]} 33. Nh6
{[%clk 0:01:03.1]} 33... d4 {[%clk 0:00:02.1]} 34. Nc4 {[%clk 0:00:57.6]} 1-0

[Event "Late-Titled-Tuesday-Blitz-September-05-2023"]
[Site "Chess.com"]
[Date "2023.09.05"]
[Round "10"]
[White "CrushingKings"]
[Black "Zhigalko_Sergei"]
[Result "0-1"]
[WhiteElo "2546"]
[BlackElo "2874"]
[TimeControl "180+1"]
[EndTime "15:54:10 PDT"]
[Termination "Zhigalko_Sergei won by resignation"]

1. Nf3 {[%clk 0:02:45.1]} 1... d5 {[%clk 0:02:59.5]} 2. g3 {[%clk 0:02:44.7]}
2... c6 {[%clk 0:02:59.8]} 3. Bg2 {[%clk 0:02:45.2]} 3... Bg4 {[%clk 0:03:00.4]}
4. h3 {[%clk 0:02:44.8]} 4... Bh5 {[%clk 0:03:00.3]} 5. O-O {[%clk 0:02:44.2]}
5... e6 {[%clk 0:03:00.2]} 6. d3 {[%clk 0:02:40]} 6... Bd6 {[%clk 0:03:00.5]} 7.
Qe1 {[%clk 0:02:40.5]} 7... Ne7 {[%clk 0:03:00.6]} 8. e4 {[%clk 0:02:41.2]} 8...
O-O {[%clk 0:03:00.9]} 9. Nc3 {[%clk 0:02:40.7]} 9... Nd7 {[%clk 0:02:59.1]} 10.
Bd2 {[%clk 0:02:36.9]} 10... Re8 {[%clk 0:02:59.2]} 11. d4 {[%clk 0:02:35.8]}
11... a5 {[%clk 0:02:38.3]} 12. Qc1 {[%clk 0:02:14.5]} 12... b5 {[%clk
0:02:20.9]} 13. Re1 {[%clk 0:02:13.1]} 13... b4 {[%clk 0:02:12.8]} 14. Na4
{[%clk 0:02:13.2]} 14... Nb6 {[%clk 0:02:12.5]} 15. Nxb6 {[%clk 0:01:57.1]}
15... Qxb6 {[%clk 0:02:13.4]} 16. c4 {[%clk 0:01:36.5]} 16... bxc3 {[%clk
0:01:45.3]} 17. bxc3 {[%clk 0:01:37.4]} 17... Rab8 {[%clk 0:01:32]} 18. c4
{[%clk 0:01:33.9]} 18... Bb4 {[%clk 0:01:22.7]} 19. exd5 {[%clk 0:01:24.8]}
19... cxd5 {[%clk 0:01:16.9]} 20. c5 {[%clk 0:01:24.9]} 20... Bxd2 {[%clk
0:01:01.5]} 21. Qxd2 {[%clk 0:01:23.2]} 21... Qb4 {[%clk 0:01:02]} 22. Qf4
{[%clk 0:00:59.8]} 22... Bxf3 {[%clk 0:00:58.4]} 23. Bxf3 {[%clk 0:00:59.4]}
23... Nc6 {[%clk 0:00:58.1]} 24. Rad1 {[%clk 0:00:50.9]} 24... h6 {[%clk
0:00:54.8]} 25. Qd6 {[%clk 0:00:45]} 25... Nxd4 {[%clk 0:00:48.1]} 26. Bg2
{[%clk 0:00:36.7]} 26... Red8 {[%clk 0:00:46.6]} 27. Qe7 {[%clk 0:00:26]} 27...
Nc6 {[%clk 0:00:30.8]} 28. Qc7 {[%clk 0:00:25.3]} 28... Rbc8 {[%clk 0:00:29.2]}
29. Qf4 {[%clk 0:00:24.5]} 29... Qxf4 {[%clk 0:00:22.9]} 30. Rc1 {[%clk
0:00:25.2]} 30... Qf6 {[%clk 0:00:21.1]} 0-1

[Event "Late-Titled-Tuesday-Blitz-September-05-2023"]
[Site "Chess.com"]
[Date "2023.09.05"]
[Round "10"]
[White "PapaieDudu"]
[Black "Dewarfd"]
[Result "1-0"]
[WhiteElo "2301"]
[BlackElo "2197"]
[TimeControl "180+1"]
[EndTime "15:54:11 PDT"]
[Termination "PapaieDudu won on time"]

1. e4 {[%clk 0:03:00.9]} 1... e5 {[%clk 0:02:59.8]} 2. f4 {[%clk 0:03:00.7]}
2... exf4 {[%clk 0:02:59.6]} 3. Nf3 {[%clk 0:03:00.5]} 3... d6 {[%clk
0:02:55.8]} 4. d4 {[%clk 0:02:58.5]} 4... g5 {[%clk 0:02:54.9]} 5. Bc4 {[%clk
0:02:57.5]} 5... g4 {[%clk 0:02:50.4]} 6. O-O {[%clk 0:02:55.5]} 6... gxf3
{[%clk 0:02:49.6]} 7. Qxf3 {[%clk 0:02:56]} 7... Qf6 {[%clk 0:02:29.2]} 8. e5
{[%clk 0:02:46.2]} 8... dxe5 {[%clk 0:02:24.7]} 9. Nc3 {[%clk 0:02:44.5]} 9...
Qb6 {[%clk 0:02:02.1]} 10. Kh1 {[%clk 0:02:37]} 10... Qxd4 {[%clk 0:01:57.7]}
11. Bb5+ {[%clk 0:02:16.4]} 11... c6 {[%clk 0:01:47.5]} 12. Nd5 {[%clk
0:02:10.1]} 12... Qb6 {[%clk 0:01:32.4]} 13. Nxb6 {[%clk 0:02:09.6]} 13... axb6
{[%clk 0:01:32.5]} 14. Bc4 {[%clk 0:02:06.5]} 14... Nf6 {[%clk 0:01:27.9]} 15.
Bxf4 {[%clk 0:02:01.5]} 15... exf4 {[%clk 0:01:28.3]} 16. Rfe1+ {[%clk
0:01:57.7]} 16... Be7 {[%clk 0:01:26.5]} 17. Qxf4 {[%clk 0:01:57.5]} 17... Be6
{[%clk 0:01:12]} 18. Bxe6 {[%clk 0:01:52.4]} 18... fxe6 {[%clk 0:01:12.9]} 19.
Rxe6 {[%clk 0:01:52]} 19... Kf7 {[%clk 0:01:08.6]} 20. Rae1 {[%clk 0:01:48.8]}
20... Re8 {[%clk 0:01:08.5]} 21. Qe5 {[%clk 0:01:32.3]} 21... Nbd7 {[%clk
0:00:51.1]} 22. Rxe7+ {[%clk 0:01:31.2]} 22... Kf8 {[%clk 0:00:51.1]} 23. Qe6
{[%clk 0:01:24.3]} 23... Rxe7 {[%clk 0:00:37.2]} 24. Qxe7+ {[%clk 0:01:25.2]}
24... Kg8 {[%clk 0:00:37.8]} 25. h3 {[%clk 0:01:18.4]} 25... Re8 {[%clk
0:00:21.8]} 26. Qb4 {[%clk 0:01:17.9]} 26... Ra8 {[%clk 0:00:09]} 27. Re3 {[%clk
0:01:11.7]} 27... c5 {[%clk 0:00:08.9]} 28. Qb3+ {[%clk 0:01:10]} 28... Kf8
{[%clk 0:00:06.8]} 29. g4 {[%clk 0:01:03.5]} 29... h6 {[%clk 0:00:06.8]} 30. Rf3
{[%clk 0:00:58.3]} 1-0

[Event "Late-Titled-Tuesday-Blitz-September-05-2023"]
[Site "Chess.com"]
[Date "2023.09.05"]
[Round "10"]
[White "PepeCuenca"]
[Black "Sanan_Sjugirov"]
[Result "0-1"]
[WhiteElo "2667"]
[BlackElo "2893"]
[TimeControl "180+1"]
[EndTime "15:54:26 PDT"]
[Termination "Sanan_Sjugirov won on time"]

1. c4 {[%clk 0:02:48.4]} 1... Nf6 {[%clk 0:02:58.3]} 2. Nc3 {[%clk 0:02:46.6]}
2... e5 {[%clk 0:02:58.4]} 3. Nf3 {[%clk 0:02:46.8]} 3... Nc6 {[%clk 0:02:58.6]}
4. e4 {[%clk 0:02:47.4]} 4... h6 {[%clk 0:02:54.8]} 5. h3 {[%clk 0:02:44.9]}
5... Bc5 {[%clk 0:02:46.6]} 6. Nxe5 {[%clk 0:02:40.1]} 6... Nxe5 {[%clk
0:02:45]} 7. d4 {[%clk 0:02:40.4]} 7... Bb4 {[%clk 0:02:44.8]} 8. dxe5 {[%clk
0:02:40.4]} 8... Nxe4 {[%clk 0:02:45.2]} 9. Qf3 {[%clk 0:02:41]} 9... Nxc3
{[%clk 0:02:07.7]} 10. bxc3 {[%clk 0:02:40.9]} 10... Ba5 {[%clk 0:02:08.4]} 11.
Bf4 {[%clk 0:02:23.2]} 11... O-O {[%clk 0:02:03.8]} 12. O-O-O {[%clk 0:02:22]}
12... Qe7 {[%clk 0:02:02.5]} 13. Kb2 {[%clk 0:02:18.6]} 13... Rb8 {[%clk
0:01:57.5]} 14. Bd3 {[%clk 0:01:47.9]} 14... b5 {[%clk 0:01:55.8]} 15. cxb5
{[%clk 0:01:37.7]} 15... Qc5 {[%clk 0:01:45]} 16. Rc1 {[%clk 0:01:25.4]} 16...
Bb7 {[%clk 0:01:21.8]} 17. Qe3 {[%clk 0:01:18.5]} 17... Qe7 {[%clk 0:00:54]} 18.
Bxh6 {[%clk 0:00:52.4]} 18... Rfe8 {[%clk 0:00:51.8]} 19. Bf4 {[%clk 0:00:48]}
19... Bc6 {[%clk 0:00:49.9]} 20. Ka1 {[%clk 0:00:24.2]} 20... Bxb5 {[%clk
0:00:50.1]} 21. Bb1 {[%clk 0:00:18.8]} 21... Bc4 {[%clk 0:00:28.1]} 22. Rhd1
{[%clk 0:00:16.8]} 22... Qa3 {[%clk 0:00:25.5]} 23. Qd2 {[%clk 0:00:17.1]} 23...
Rxb1+ {[%clk 0:00:21.7]} 24. Kxb1 {[%clk 0:00:14.7]} 24... Rb8+ {[%clk
0:00:21.8]} 25. Ka1 {[%clk 0:00:15]} 25... Bxa2 {[%clk 0:00:19.7]} 0-1